[Event "5th Baskent University Open 2022"]
[Site "Ankara"]
[Date "2022.07.03"]
[Round "2.23"]
[White "Yurtoglu, Osman Talha"]
[Black "Mammadov, Ilgar"]
[Result "0-1"]
[ECO "C45"]
[WhiteElo "1923"]
[BlackElo "1619"]
[Annotator "NA RC"]
[PlyCount "47"]
[EventDate "2022.07.02"]
[EventType "swiss"]
[EventCountry "TUR"]
[SourceTitle "playchess.com"]
[Source "ChessBase"]
[SourceQuality "1"]
[TimeControl "5400+30"]

1. e4 {[%emt 0:01:00]} e5 {[%emt 0:01:00]} 2. Nf3 {[%emt 0:00:30]} Nc6 {[%emt 0:00:30]} 3. d4 {[%emt 0:00:00]} exd4 {[%emt 0:00:30]} 4. Nxd4 {[%emt 0:00:00]} Nf6 {[%emt 0:00:30]} 5. Nxc6 {[%emt 0:00:00]} bxc6 {[%emt 0:00:30]} 6. e5 {[%emt 0:00:00]} Qe7 {[%emt 0:01:30]} 7. Qe2 {[%emt 0:00:00]} Nd5 {[%emt 0:00:30]} 8. c4 {[%emt 0:00:00]} Ba6 {[%emt 0:00:30]} 9. b3 {[%emt 0:00:00]} f6 {[%emt 0:02:30]} 10. f4 {[%emt 0:23:00]} fxe5 {[%emt 0:24:30]} 11. fxe5 {[%emt 0:00:30]} Qh4+ {[%emt 0:01:30]} 12. Qf2 {[%emt 0:11:30]} Qxf2+ {[%emt 0:02:30]} 13. Kxf2 {[%emt 0:00:30]} Bc5+ {[%emt 0:00:00]} 14. Kg3 {[%emt 0:13:30]} Bd4 {[%emt 0:01:00]} 15. cxd5 {[%emt 0:00:30]} Bxf1 {[%emt 0:00:00]} 16. Rxf1 {[%emt 0:00:30]} Bxa1 {[%emt 0:01:00]} 17. dxc6 {[%emt 0:00:00]} Bxe5+ {[%emt 0:03:30]} 18. Kg4 {[%emt 0:00:00]} O-O-O {[%emt 0:01:30]} 19. cxd7+ {[%emt 0:01:30]} Rxd7 {[%emt 0:01:30]} 20. Be3 {[%emt 0:00:30]} Bd4 {[%emt 0:01:30]} 21. Bf4 {[%emt 0:00:30]} h5+ {[%emt 0:07:30]} 22. Kg3 {[%emt 0:02:30]} Rf8 {[%emt 0:03:30]} 23. h4 {[%emt 0:03:30]} Rdf7 {[%emt 0:01:30]} 24. Rh1 {[%emt 0:02:30]} 0-1

[Event "5th Baskent University Open 2022"]
[Site "Ankara"]
[Date "2022.07.03"]
[Round "2.24"]
[White "Dilen, Bedirhan"]
[Black "Ibik, Halit Yavuz"]
[Result "0-1"]
[ECO "D00"]
[WhiteElo "1621"]
[BlackElo "1967"]
[Annotator "NA RC"]
[PlyCount "70"]
[EventDate "2022.07.02"]
[EventType "swiss"]
[EventCountry "TUR"]
[SourceTitle "playchess.com"]
[Source "ChessBase"]
[SourceQuality "1"]
[TimeControl "5400+30"]

1. d4 {[%emt 0:00:00]} d5 {[%emt 0:01:00]} 2. Bf4 {[%emt 0:00:30]} e6 {[%emt 0:00:30]} 3. e3 {[%emt 0:00:30]} Bd6 {[%emt 0:00:30]} 4. Bg3 {[%emt 0:00:00]} Qe7 {[%emt 0:00:30]} 5. Nd2 {[%emt 0:02:00]} Nd7 {[%emt 0:00:30]} 6. Ngf3 {[%emt 0:00:00]} e5 {[%emt 0:01:30]} 7. dxe5 {[%emt 0:01:00]} Nxe5 8. c3 Nf6 9. Nxe5 Bxe5 10. Bxe5 Qxe5 11. Nf3 {[%emt 0:05:00]} Qe7 {[%emt 0:01:30]} 12. Bd3 {[%emt 0:00:30]} O-O {[%emt 0:01:30]} 13. h3 {[%emt 0:00:30]} Rd8 {[%emt 0:10:30]} 14. Qc2 {[%emt 0:00:30]} c5 {[%emt 0:01:30]} 15. O-O {[%emt 0:01:30]} b6 {[%emt 0:01:30]} 16. Rfe1 {[%emt 0:02:30]} Bb7 {[%emt 0:00:30]} 17. a4 {[%emt 0:00:30]} a5 {[%emt 0:01:30]} 18. Rad1 {[%emt 0:00:30]} Rd6 {[%emt 0:01:30]} 19. Qe2 {[%emt 0:05:30]} Rad8 {[%emt 0:01:30]} 20. Bc2 {[%emt 0:03:30]} g6 {[%emt 0:09:30]} 21. Rd2 {[%emt 0:13:30]} Ne4 {[%emt 0:03:30]} 22. Bxe4 {[%emt 0:00:30]} dxe4 {[%emt 0:00:30]} 23. Rxd6 {[%emt 0:00:30]} Qxd6 {[%emt 0:00:30]} 24. Nh2 {[%emt 0:00:30]} Qd2 {[%emt 0:10:30]} 25. Qxd2 {[%emt 0:11:30]} Rxd2 {[%emt 0:00:30]} 26. Rb1 {[%emt 0:00:00]} Ba6 {[%emt 0:03:30]} 27. Nf1 $19 {[%emt 0:01:00]} Rc2 {[%emt 0:00:30]} 28. b4 {[%emt 0:09:30]} Rxc3 {[%emt 0:03:30]} 29. bxa5 {[%emt 0:00:30]} bxa5 {[%emt 0:01:30]} 30. Nd2 {[%emt 0:00:30]} Bd3 {[%emt 0:00:30]} 31. Rb8+ {[%emt 0:00:30]} Kg7 {[%emt 0:00:00]} 32. Nb3 {[%emt 0:02:30]} c4 {[%emt 0:01:00]} 33. Nxa5 {[%emt 0:00:30]} Rc1+ {[%emt 0:00:30]} 34. Kh2 {[%emt 0:00:30]} c3 {[%emt 0:00:00]} 35. Rc8 {[%emt 0:02:30]} c2 {[%emt 0:00:00]} 0-1

[Event "5th Baskent University Open 2022"]
[Site "Ankara"]
[Date "2022.07.03"]
[Round "3.1"]
[White "Unat, Can Haktan"]
[Black "Rasulov, Vugar"]
[Result "0-1"]
[ECO "C56"]
[WhiteElo "2242"]
[BlackElo "2458"]
[Annotator "TA"]
[PlyCount "74"]
[EventDate "2022.07.02"]
[EventType "swiss"]
[EventCountry "TUR"]
[SourceTitle "playchess.com"]
[Source "ChessBase"]
[SourceQuality "1"]
[TimeControl "5400+30"]

{[%evp 15,74,0,0,0,0,-7,0,-10,0,0,12,2,0,-12,-13,-31,-38,-16,43,16,16,0,35,34,100,35,79,54,87,13,14,36,18,24,107,106,110,52,160,164,181,63,48,-37,-23,-102,-104,-93,-83,-344,-335,-321,-327,-642,-618,-627,-601,-629,-595,-583,-560]} 1. e4 {[%emt 0:04:00]} e5 {[%emt 0:01:00][%cal Be7e5,Be5d4][%mdl 32]} 2. Nf3 {[%emt 0:00:00]} Nc6 {[%emt 0:00:00]} 3. Bc4 {[%emt 0:00:00]} Nf6 {[%emt 0:00:00]} 4. d4 {[%emt 0:01:30]} exd4 {[%emt 0:00:30]} 5. e5 {[%emt 0:00:30]} d5 {[%emt 0:00:30]} 6. Bb5 {[%emt 0:00:00]} Nd7 {[%emt 0:01:30]} 7. O-O {[%emt 0:00:00]} Be7 {[%emt 0:00:00]} 8. Bxc6 {[%emt 0:00:30]} bxc6 {[%emt 0:00:00]} 9. Nxd4 {[%emt 0:00:00] C56: Two Knights: 4 d4 exd4 5 0-0 Nxe4.} Nb8 {[%emt 0:00:30]} 10. Nc3 {[%emt 0:00:00]} O-O {[%emt 0:00:30]} 11. Qf3 {[%emt 0:02:30] The position is equal.} Qd7 {[%emt 0:01:30]} 12. Re1 {[%emt 0:06:30]} a5 {[%emt 0:04:30]} 13. h3 {[%emt 0:03:30]} Ra6 {[%emt 0:01:30] [#]} 14. Nde2 $146 {[%emt 0:08:30]} ({Predecessor:} 14. g4 Re8 15. Nf5 Bf8 16. Bf4 d4 17. Ne4 c5 18. Rad1 Rg6 19. Bg3 Nc6 20. Qe2 Nxe5 {0-1 (35) Pap,M (2480)-Moiseenko,V (2512) Las Palmas 2019}) 14... f6 {[%emt 0:07:30]} 15. e6 {[%emt 0:03:30]} Qxe6 {[%emt 0:01:30]} 16. Bf4 {[%emt 0:01:30]} Bd8 {[%emt 0:06:30]} (16... Qf7 $11) 17. Qg3 {[%emt 0:08:30][%mdl 1024] White has compensation.} Qf7 {[%emt 0:00:30]} 18. Na4 {[%emt 0:00:30]} Ra8 {[%emt 0:24:30]} (18... Nd7 $5 {[%cal Rd7e5]}) 19. Nd4 $36 {[%emt 0:03:30][%mdl 2048] White has good play. Pair of Knights!} Kh8 {[%emt 0:02:30]} (19... Na6 $14) 20. h4 {[%emt 0:09:30]} (20. b3 $16) 20... h6 {[%emt 0:06:30]} 21. Nc5 {[%emt 0:03:30]} Rg8 {[%emt 0:01:30]} 22. Re3 {[%emt 0:12:30]} (22. Qe3 $16) 22... Na6 {[%emt 0:06:30]} 23. Nce6 {[%emt 0:03:30]} Bxe6 {[%emt 0:00:30]} (23... c5 24. Nxd8 Rxd8 25. Rae1 (25. Nc6 Re8 $11)) 24. Nxe6 {[%emt 0:00:00]} (24. Rxe6 $2 c5 25. Rxa6 (25. Qd3 $2 Nb4 $19) 25... Rxa6 $19) 24... f5 {[%emt 0:03:30]} (24... Be7 $11) 25. Rae1 {[%emt 0:05:00]} Bf6 {[%emt 0:00:00]} 26. Qh3 {[%emt 0:06:16]} (26. Bxc7 Nxc7 27. Nxc7 (27. Qxc7 Qxc7 28. Nxc7 Rac8 $15) 27... Rab8 $15) ({White should try} 26. c3 $16) 26... d4 {[%emt 0:04:00] [#]} ({Better is} 26... Bxb2 $14 27. c3 Ba3) 27. R3e2 $1 $16 {[%emt 0:02:15]} Qh5 {[%emt 0:01:30]} 28. Bd2 {[%emt 0:00:31]} (28. Bxc7 $6 Nxc7 29. Nxc7 Rab8 $14) (28. Be5 $18) 28... Nb4 $14 {[%emt 0:01:30]} 29. f3 {[%emt 0:01:23]} (29. Qb3 $14) 29... Nd5 $15 {[%emt 0:04:54]} (29... Bxh4 $2 30. Bxb4 (30. Nxd4 g6 $11) 30... axb4 31. Nf4 (31. g3 Rxa2 32. gxh4 Rxb2 $18) 31... Bf2+ 32. Kxf2 Qxh3 33. gxh3 $18) 30. c4 {[%emt 0:05:13]} (30. Nc5 $11) 30... dxc3 $17 {[%emt 0:01:04]} 31. bxc3 {[%emt 0:00:10]} Nxc3 {[%emt 0:01:03]} (31... Bxc3 $6 32. Bxc3 Nxc3 33. Re5 $11) 32. Re5 {[%emt 0:04:50][%mdl 8192] White does not recover from this.} Bxe5 $19 {[%emt 0:00:30]} ({Worse is} 32... Nxa2 33. Rxf5 (33. Nf4 Qf7 $15) 33... Qf7 34. Qg4 $11 (34. Rxa5 Nc3 $15) (34. Bxa5 Rge8 $17)) 33. Rxe5 {[%emt 0:00:30]} Nd5 {[%emt 0:00:00]} ({Not} 33... Nxa2 $2 34. Bxa5 Nc1 35. Nf4 $19) 34. g4 $2 {[%emt 0:01:56]} (34. Nf4 Nxf4 35. Bxf4) 34... fxg4 {[%emt 0:01:16] Black is clearly winning.} 35. Qg3 {[%emt 0:00:42]} Qg6 {[%emt 0:00:04] [#] White must now prevent ...Qd3.} 36. fxg4 {[%emt 0:02:35]} Rge8 {[%emt 0:00:28]} 37. h5 {[%emt 0:00:41]} Qf7 {[%emt 0:00:18] Weighted Error Value: White=0.51/Black=0.23 (precise)} 0-1

[Event "5th Baskent University Open 2022"]
[Site "Ankara"]
[Date "2022.07.03"]
[Round "3.2"]
[White "Caputcuoglu, Zeki Berke"]
[Black "Ozer, Omer Faruk"]
[Result "1-0"]
[ECO "E11"]
[WhiteElo "2203"]
[BlackElo "2317"]
[Annotator "TA"]
[PlyCount "65"]
[EventDate "2022.07.02"]
[EventType "swiss"]
[EventCountry "TUR"]
[SourceTitle "playchess.com"]
[Source "ChessBase"]
[SourceQuality "1"]
[TimeControl "5400+30"]

{[%evp 9,65,28,36,19,26,0,0,-10,-13,-24,-3,0,-7,-8,0,-10,14,16,21,20,29,0,0,0,38,34,62,62,58,47,45,28,12,18,13,0,0,0,15,0,35,18,129,125,264,187,210,202,191,191,263,252,272,279,339,311,754,739]} 1. Nf3 {[%emt 0:13:00]} Nf6 {[%emt 0:02:00]} 2. c4 {[%emt 0:00:00]} e6 {[%emt 0:07:30]} 3. d4 {[%emt 0:00:00]} Bb4+ {[%emt 0:00:30]} 4. Nbd2 {[%emt 0:00:30]} a5 {[%emt 0:12:30]} 5. a3 {[%emt 0:07:30]} Bxd2+ {[%emt 0:00:30]} 6. Nxd2 {[%emt 0:03:30] E11: Bogo-Indian.} ({Reject} 6. Kxd2 b6 $11) 6... d6 {[%emt 0:01:30] [#]} 7. g3 $146 {[%emt 0:06:30]} ({Predecessor:} 7. e4 e5 8. d5 a4 9. Bd3 O-O 10. O-O Nbd7 11. Qe2 Nc5 12. Bc2 h6 13. Nb1 {½-½ (40) Fernandez Rios,J (1794)-Vinas Lopez,C (1876) Madrid 2020}) 7... e5 {[%emt 0:04:30]} 8. d5 {[%emt 0:02:30] The position is equal.} a4 {[%emt 0:01:30]} 9. Bg2 {[%emt 0:01:30]} Nbd7 {[%emt 0:02:30]} 10. O-O {[%emt 0:03:30]} Nc5 {[%emt 0:11:30]} 11. b4 {[%emt 0:05:30]} axb3 $1 {[%emt 0:00:30]} 12. Nxb3 {[%emt 0:00:00]} Nxb3 {[%emt 0:00:30]} 13. Qxb3 {[%emt 0:00:00]} Nd7 {[%emt 0:00:30]} 14. a4 {[%emt 0:06:30]} O-O {[%emt 0:12:30]} 15. Ba3 {[%emt 0:06:30][%cal Bc1a3,Ba3b4,Bb4a5,Ba5e1,Be1c3][%mdl 32]} b6 {[%emt 0:02:30]} 16. Bb4 {[%emt 0:05:30]} Rb8 {[%emt 0:16:30]} 17. Qc3 {[%emt 0:03:30]} f5 {[%emt 0:04:46]} 18. a5 {[%emt 0:02:30] White is more active.} bxa5 {[%emt 0:01:20]} 19. Bxa5 {[%emt 0:03:30]} f4 {[%emt 0:00:39]} 20. Rfb1 {[%emt 0:04:30]} Rxb1+ {[%emt 0:03:46]} 21. Rxb1 {[%emt 0:00:00]} Nc5 {[%emt 0:01:31]} 22. Rb8 {[%emt 0:06:05]} Qd7 {[%emt 0:00:40] Against Bh3} 23. Qa3 {[%emt 0:03:06]} Qf7 {[%emt 0:01:57]} 24. Be1 {[%emt 0:02:00]} g6 {[%emt 0:04:17]} 25. f3 {[%emt 0:06:20]} e4 {[%emt 0:00:51]} (25... Nd7 $11 {remains equal.} 26. Rb1 g5) 26. fxe4 $16 {[%emt 0:02:17][%cal Oe4e5]} Qf6 {[%emt 0:00:53] This costs Black the game.} (26... fxg3 $16 27. hxg3 Nd7) 27. Qc3 {[%emt 0:01:20]} ({Not} 27. Bc3 Qe7 $16) 27... Qxc3 {[%emt 0:02:55]} 28. Bxc3 {[%emt 0:00:30] gxf4 is the strong threat.} fxg3 {[%emt 0:00:30]} 29. hxg3 {[%emt 0:00:00]} Nd7 {[%emt 0:01:58]} (29... Bd7 {was necessary.} 30. Rxf8+ Kxf8) 30. Ra8 $18 {[%emt 0:00:59] [#] Threatens to win with Ra7.} Nb6 {[%emt 0:01:17]} 31. Ra7 {[%emt 0:00:17]} Rf7 {[%emt 0:00:35]} 32. e5 {[%emt 0:00:35][%cal Be4e5,Be5e6][%mdl 32] Hoping for e6.} Nxc4 $2 {[%emt 0:00:57]} (32... c5 33. Ra5 Nxc4) 33. e6 {[%emt 0:00:13] Weighted Error Value: White=0.09 (flawless) /Black=0.27 (precise)} 1-0

[Event "5th Baskent University Open 2022"]
[Site "Ankara"]
[Date "2022.07.03"]
[Round "3.4"]
[White "Atabayev, Saparmyrat"]
[Black "Citak, Selim"]
[Result "1-0"]
[ECO "C42"]
[WhiteElo "2447"]
[BlackElo "2176"]
[Annotator "TA"]
[PlyCount "57"]
[EventDate "2022.07.02"]
[EventType "swiss"]
[EventCountry "TUR"]
[SourceTitle "playchess.com"]
[Source "ChessBase"]
[SourceQuality "1"]
[TimeControl "5400+30"]

{[%evp 16,57,27,12,18,12,9,0,0,-36,0,0,0,0,0,0,0,-18,0,0,7,0,26,-32,24,12,15,12,247,227,218,214,29987,29988,29988,29989,29988,1302,1280,1267,1232,1207,1028,979]} 1. e4 {[%emt 0:01:00]} e5 {[%emt 0:02:00]} 2. Nf3 {[%emt 0:00:30]} Nf6 {[%emt 0:00:00]} 3. Nxe5 {[%emt 0:00:00]} d6 {[%emt 0:00:00]} 4. Nf3 {[%emt 0:00:00]} Nxe4 {[%emt 0:00:30]} 5. Nc3 {[%emt 0:00:00]} Nxc3 {[%emt 0:00:00]} 6. dxc3 {[%emt 0:00:00]} Be7 {[%emt 0:00:00]} 7. Bf4 {[%emt 0:00:30]} Nc6 {[%emt 0:00:30]} 8. Qd2 {[%emt 0:00:30]} Be6 {[%emt 0:00:30]} 9. O-O-O {[%emt 0:01:30]} Qd7 {[%emt 0:03:30] C42: Petroff Defence: 3 Nxe5 and unusual White 3rd moves.} (9... Bxa2 $2 10. b3 $16) 10. Bd3 {[%emt 0:01:30]} h6 {[%emt 0:04:30] [#]} 11. Bb5 $146 {[%emt 0:00:30]} ({Predecessor:} 11. h4 O-O-O 12. Nd4 Nxd4 13. cxd4 Qa4 14. a3 Qxd4 15. Be3 Qd5 16. c4 Qc6 17. Qc2 {0-1 (34) Lagunow,R (2378)-Valdes Romero,L (2402) Chess.com INT 2021}) 11... a6 {[%emt 0:02:30] The position is equal.} (11... Bxa2 $2 12. Ne5 $1 {[%mdl 512]} Qf5 13. Nxc6 Qxb5 14. Nxe7 $18) 12. Ba4 {[%emt 0:00:30][%cal Oc3c4]} Bf6 {[%emt 0:16:30]} (12... Bxa2 $2 13. Ne5 $1 {[%mdl 512]} Qf5 14. Nxc6 Qxf4 15. Nb4+ b5 16. Qxf4 $18) (12... b5 $5 {[%cal Rb5a4]} 13. Bb3 O-O $11) 13. Nd4 {[%emt 0:06:30]} Bxd4 {[%emt 0:00:30]} 14. cxd4 {[%emt 0:00:30][%cal Bc3d4,Bd4d5,Bd5c6][%mdl 32] Strongly threatening d5.} b5 {[%emt 0:00:30]} 15. d5 {[%emt 0:02:30] aiming for Bb3.} bxa4 {[%emt 0:00:30]} 16. Qc3 {[%emt 0:00:30] [#]} O-O $1 {[%emt 0:06:30][%cal Oc6a7]} 17. dxc6 {[%emt 0:01:30]} Qe7 {[%emt 0:01:30]} 18. Rhe1 {[%emt 0:03:30]} Qh4 {[%emt 0:01:30]} 19. g3 {[%emt 0:09:30]} (19. Rd4 $11) 19... Qh5 {[%emt 0:08:30]} (19... Qxh2 $15 20. Be3 Bxa2) 20. Rd4 $11 {[%emt 0:02:30]} Qxh2 {[%emt 0:05:30]} 21. Be3 {[%emt 0:02:30] Rh4 is the strong threat.} Qg2 $2 {[%emt 0:09:30] [#] A mistake that costs the game.} (21... Qh5 $11 {and Black is okay.}) 22. Bxh6 $1 $18 {[%emt 0:01:30][%mdl 512]} gxh6 {[%emt 0:09:30] [#]} 23. Rxe6 {[%emt 0:00:30] Threatening mate with Rg4+.} f6 $2 {[%emt 0:00:00]} (23... fxe6 $2 {is a self mate.} 24. Rg4+ Kf7 25. Qg7+ Ke8 26. Qd7#) (23... Qh1+ $18 24. Re1 Qh5) 24. Rg4+ {[%emt 0:02:30]} Kh7 {[%emt 0:03:00]} 25. Re7+ {[%emt 0:13:30]} Kh8 {[%emt 0:00:30]} 26. Qd2 {[%emt 0:01:30]} (26. Qd4 $142 Qh1+ 27. Kd2 Qh5 28. Rgg7 (28. Qd3 Rf7 $18) 28... Qf5 29. g4 Qa5+ 30. Kd1 Rf7 31. Rgxf7) 26... Qh1+ {[%emt 0:01:30] White is clearly winning.} 27. Re1 {[%emt 0:01:30]} Qh5 {[%emt 0:01:30]} 28. Rh4 {[%emt 0:00:30]} Qg5 {[%emt 0:00:00]} 29. f4 {[%emt 0:00:30] Weighted Error Value: White=0.09 (flawless) /Black=0.66} 1-0

[Event "5th Baskent University Open 2022"]
[Site "Ankara"]
[Date "2022.07.03"]
[Round "3.5"]
[White "Gunduz, Umut Erdem"]
[Black "Altun, Arda"]
[Result "1-0"]
[ECO "B19"]
[WhiteElo "2368"]
[BlackElo "2213"]
[Annotator "TA"]
[PlyCount "139"]
[EventDate "2022.07.02"]
[EventType "swiss"]
[EventCountry "TUR"]
[SourceTitle "playchess.com"]
[Source "ChessBase"]
[SourceQuality "1"]
[TimeControl "5400+30"]

{[%evp 24,139,7,23,0,-6,0,-17,0,0,0,0,8,7,4,6,2,6,12,0,0,0,25,17,25,0,18,19,50,41,110,101,125,128,94,102,166,156,116,79,66,72,130,145,132,124,158,121,123,114,111,61,708,158,164,79,79,79,79,90,81,81,83,81,318,183,533,517,375,0,0,0,0,0,0,0,8,13,27,0,29,36,599,596,592,0,7,7,8,8,29951,12359,29979,29980,29980,29976,29979,29977,29979,29978,29978,29973,29973,29974,29974,29975,29975,29976,29976,29977,29977,29978,29977,29978,29979,29978,29988,29989]} 1. e4 {[%emt 0:03:00]} c6 {[%emt 0:01:00]} 2. d4 {[%emt 0:00:30]} d5 {[%emt 0:00:30]} 3. Nd2 {[%emt 0:00:30]} dxe4 {[%emt 0:00:30]} 4. Nxe4 {[%emt 0:00:00]} Bf5 {[%emt 0:00:00]} 5. Ng3 {[%emt 0:00:00]} Bg6 {[%emt 0:00:00]} 6. h4 {[%emt 0:00:00]} h6 {[%emt 0:00:30]} 7. Nf3 {[%emt 0:00:00]} Nd7 {[%emt 0:00:30]} 8. h5 {[%emt 0:00:30]} Bh7 {[%emt 0:00:30]} 9. Bd3 {[%emt 0:00:00]} Bxd3 {[%emt 0:00:00]} 10. Qxd3 {[%emt 0:00:00]} e6 {[%emt 0:00:00]} 11. Bd2 {[%emt 0:00:00]} Ngf6 {[%emt 0:00:00]} 12. O-O-O {[%emt 0:00:00]} Be7 {[%emt 0:00:00]} 13. Kb1 {[%emt 0:00:00]} Qb6 {[%emt 0:00:00] B19: Classical Caro-Kann: 4...Bf5 main line.} 14. Be3 {[%emt 0:02:00][%cal Od4d5]} Rd8 {[%emt 0:07:00]} 15. Ne4 {[%emt 0:04:30]} Nxe4 {[%emt 0:07:30] The position is equal.} 16. Qxe4 {[%emt 0:00:30][%cal Od4d5]} Nf6 {[%emt 0:00:30] Inhibits d5.} 17. Qd3 {[%emt 0:00:30]} O-O {[%emt 0:04:30]} 18. Ne5 {[%emt 0:10:30] [#]} Nd5 $146 {[%emt 0:15:30]} ({Predecessor:} 18... c5 19. g4 Nd5 20. dxc5 Bxc5 21. Bxc5 Qxc5 22. g5 hxg5 23. h6 gxh6 24. Rdg1 Kg7 {1-0 (71) Mohamad,E (2260)-Paragua,M (2571) Jakarta 2013}) 19. Bc1 {[%emt 0:01:30]} c5 {[%emt 0:05:30]} 20. Qg3 {[%emt 0:07:30] Hoping for Bxh6.} Kh8 $1 {[%emt 0:04:30]} 21. c4 $36 {[%emt 0:04:30][%mdl 2048] Black must now prevent dxc5. White is pushing.} Nf6 {[%emt 0:01:30]} 22. dxc5 {[%emt 0:03:30]} Qxc5 {[%emt 0:02:30]} 23. Be3 {[%emt 0:02:30]} Qa5 {[%emt 0:01:30]} 24. f4 {[%emt 0:03:30]} Kg8 {[%emt 0:11:30]} 25. Qf3 {[%emt 0:01:30]} Bd6 {[%emt 0:07:30]} 26. Bd4 $1 {[%emt 0:02:30]} Bc5 {[%emt 0:04:30]} (26... Qc7 $14) 27. Bxc5 $16 {[%emt 0:02:30]} Rxd1+ {[%emt 0:00:30]} 28. Rxd1 {[%emt 0:00:30]} Qxc5 {[%emt 0:00:30]} 29. Qxb7 {[%emt 0:00:30] White is more active.} Qe3 {[%emt 0:09:23]} (29... Nxh5 $16 {was necessary.} 30. Qf3 Nf6) 30. Qf3 $18 {[%emt 0:01:30]} Qxf3 {[%emt 0:00:57]} 31. Nxf3 {[%emt 0:00:30]} Nxh5 $16 {[%emt 0:00:05][%mdl 4096] Endgame KRN-KRN} 32. Rd4 {[%emt 0:01:30]} f6 {[%emt 0:03:28]} (32... a5 $142) 33. c5 {[%emt 0:03:30]} Rc8 {[%emt 0:00:04]} 34. b4 {[%emt 0:00:30]} Kf8 {[%emt 0:05:56]} 35. g4 {[%emt 0:07:30]} Ng3 {[%emt 0:00:10]} 36. Rd7 {[%emt 0:01:30] And now Nd4 would win.} a5 {[%emt 0:00:59] [#]} 37. Nd4 $1 {[%emt 0:07:30]} axb4 $2 {[%emt 0:01:28][%mdl 8192]} (37... e5 $14 38. Ne6+ Ke8) 38. Nxe6+ $2 {[%emt 0:00:30]} (38. c6 $18) 38... Ke8 {[%emt 0:00:25] [#]} 39. Rxg7 {[%emt 0:00:30]} (39. Rd3 $1 $18 {[%cal Rd3g3] and White stays clearly on top.} Ne4 40. Rd4 (40. Nxg7+ Kf8 $16) 40... Nc3+ 41. Kc2) 39... Ne4 {[%emt 0:01:09]} 40. f5 {[%emt 0:04:30]} Rc6 {[%emt 0:00:19]} 41. Rb7 {[%emt 0:08:30]} Nxc5 {[%emt 0:00:49]} 42. Nxc5 {[%emt 0:00:30]} Rxc5 {[%emt 0:00:30]} 43. Rxb4 {[%emt 0:00:30] aiming for a4. KR-KR} Ke7 $2 {[%emt 0:00:53]} (43... h5 $16) 44. Kb2 {[%emt 0:00:47]} (44. a4 $142) 44... Rc6 $2 {[%emt 0:02:40]} (44... h5) 45. Re4+ $18 {[%emt 0:03:25]} Kd7 {[%emt 0:00:07]} 46. Re6 $2 {[%emt 0:00:26]} (46. a4 $18) 46... Rc4 $1 $11 {[%emt 0:00:01]} (46... Rxe6 $2 47. fxe6+ Kxe6 48. a4 $18) 47. Rxf6 {[%emt 0:00:31] Strongly threatening Rg6.} Rxg4 {[%emt 0:00:02]} 48. Rxh6 {[%emt 0:00:30] Threatens to win with Ra6.} Rf4 {[%emt 0:00:09]} 49. Rh5 {[%emt 0:06:14]} Kc6 {[%emt 0:01:31]} 50. Kc3 {[%emt 0:01:44]} Kd5 {[%emt 0:00:58]} 51. a3 {[%emt 0:00:50][%cal Ba2a3,Ba3a4,Ba4a5,Ba5a6][%mdl 32]} Kc5 {[%emt 0:01:42]} 52. Kb3 {[%emt 0:01:06]} Kb5 $2 {[%emt 0:01:41][%mdl 8192]} (52... Rf3+ $14 53. Ka4 Kc4) 53. a4+ $1 $18 {[%emt 0:02:54]} Kc5 {[%emt 0:00:04]} 54. f6+ $2 {[%emt 0:05:23]} (54. a5 $18 {Kc2 is the strong threat.} Kb5 55. Kc3 (55. f6+ Ka6 $11)) 54... Kc6 {[%emt 0:00:30]} 55. Rh6 {[%emt 0:00:01] White wants to mate with f7+.} Kc5 $1 {[%emt 0:00:00]} 56. a5 {[%emt 0:00:58]} Rf3+ {[%emt 0:00:00][%mdl 8192]} (56... Kb5 $11) 57. Kc2 {[%emt 0:00:31] Intending Kd2 and mate.} Kd6 {[%emt 0:00:35]} 58. a6 {[%emt 0:00:54] White mates.} Ke6 {[%emt 0:00:55]} 59. Kb2 {[%emt 0:00:48]} Rf5 {[%emt 0:03:33]} 60. Kb3 {[%emt 0:00:30]} Ra5 {[%emt 0:00:30]} 61. Kb4 {[%emt 0:00:30]} Ra1 {[%emt 0:00:00]} 62. Kb5 {[%emt 0:00:26]} Rb1+ {[%emt 0:00:00]} 63. Kc6 {[%emt 0:00:30]} Rc1+ {[%emt 0:00:08]} 64. Kb7 {[%emt 0:00:30]} Rb1+ {[%emt 0:00:00]} 65. Ka8 {[%emt 0:00:00]} Rb2 {[%emt 0:00:02]} 66. a7 {[%emt 0:00:02]} Rb1 {[%emt 0:00:37]} 67. Rh8 {[%emt 0:01:08]} Kxf6 {[%emt 0:00:30]} 68. Rb8 {[%emt 0:00:30]} Rc1 {[%emt 0:00:00]} 69. Rb6+ {[%emt 0:00:00]} Ke7 {[%emt 0:00:15]} 70. Kb7 {[%emt 0:00:00] Weighted Error Value: White=0.56/Black=0.65} 1-0

[Event "5th Baskent University Open 2022"]
[Site "Ankara"]
[Date "2022.07.03"]
[Round "3.6"]
[White "Koksal, Ege"]
[Black "Zor, Alber Kadir"]
[Result "1/2-1/2"]
[ECO "D38"]
[WhiteElo "2356"]
[BlackElo "2116"]
[Annotator "RC"]
[PlyCount "32"]
[EventDate "2022.07.02"]
[EventType "swiss"]
[EventCountry "TUR"]
[SourceTitle "playchess.com"]
[Source "ChessBase"]
[SourceQuality "1"]
[TimeControl "5400+30"]

1. d4 d5 2. c4 e6 3. Nc3 Nf6 4. Nf3 Bb4 5. Bg5 h6 6. Bxf6 Qxf6 7. e3 O-O 8. Rc1 dxc4 9. Bxc4 c5 10. O-O cxd4 11. Nxd4 Bd7 12. Qb3 Nc6 13. Nxc6 Bxc3 14. Rxc3 Bxc6 15. Bb5 Bd5 16. Bc4 Bc6 1/2-1/2